lending/lending_fUSD_20240130
["ID","MTS","AMOUNT","RATE_DAILY","PERIOD"]
[313028616,1706644265845,-150.0,0.00049397,30]
[313028617,1706644265855,-500.0,0.00049415,14]
[313028618,1706644265865,-150.0,0.00049421,30]
[313028619,1706644265874,-150.0,0.00049448,30]
[313028620,1706644265883,-150.0,0.00049462,30]
[313028621,1706644265893,-150.0,0.0004949,30]
[313028622,1706644265902,-150.0,0.000495,2]
[313028623,1706644265912,-150.0,0.00049515,30]
[313028624,1706644265922,-150.0,0.00049527,30]
[313028625,1706644265931,-150.0,0.00049566,30]
[313028626,1706644265941,-544.02224721,0.00049589,30]
[313028627,1706644265950,-340.99,0.00049589,30]
[313028628,1706644265960,-851.25,0.00049589,30]
[313028629,1706644265970,-150.0,0.00049589,30]
[313028630,1706644265979,-647.18,0.00049589,30]
[313028631,1706644265989,-70000.0,0.0004959,7]
[313028632,1706644265998,-150.0,0.00049592,30]
[313028633,1706644266008,-150.0,0.00049607,30]
[313028634,1706644266017,-2000.0,0.00049639,60]
[313028635,1706644266026,-150.0,0.00049657,30]
[313028636,1706644266036,-150.0,0.00049687,30]
[313028637,1706644266046,-2775.10714619,0.000497,61]
[313028638,1706644266055,-150.0,0.00049722,30]
[313028639,1706644266065,-153.48051278,0.00049733,43]
[313028640,1706644266074,-2200.10361826,0.00049736,5]
[313028641,1706644266083,-150.0,0.00049744,30]
[313028642,1706644266093,-150.0,0.00049744,30]
[313028643,1706644266102,-150.0,0.00049744,30]
[313028644,1706644266111,-150.0,0.00049748,2]
[313028645,1706644266121,-194.77606192,0.00049749,9]
[313028646,1706644266130,-261.44575353,0.00049749,9]
[313028647,1706644266139,-184.523,0.0004976,120]
[313028648,1706644266149,-184.524,0.0004976,120]
[313028649,1706644266158,-150.0,0.00049787,30]
[313028650,1706644266167,-1977.87,0.00049799,60]
[313028651,1706644266176,-154.15660913,0.000498,60]
[313028652,1706644266185,-680.1105744,0.000498,120]
[313028653,1706644266195,-5027.0,0.000498,30]
[313028654,1706644266203,-2346.0996597,0.0004982,12]
[313028655,1706644266213,-150.0,0.00049852,30]
[313028656,1706644266222,-150.0,0.00049858,30]
[313028657,1706644266231,-312.0,0.0004989,7]
[313028658,1706644266241,-254.0,0.0004989,7]
[313028659,1706644266250,-4439.69422613,0.00049899,60]
[313028660,1706644266260,-255609.39465435,0.000499,7]
[313028662,1706644268070,-150.0,0.00022725,2]
[313028663,1706644268079,-107.48503298,0.00022725,2]
[313028664,1706644268090,-42.51496702,0.00022725,2]
[313028665,1706644268099,-150.0,0.00022725,2]
[313028666,1706644268108,-150.0,0.00022727,2]
[313028667,1706644268117,-150.0,0.0002273,2]
[313028668,1706644268126,-150.0,0.00022734,2]
[313028669,1706644268135,-150.0,0.00022734,2]
[313028670,1706644268144,-150.0,0.00022737,2]
[313028671,1706644268154,-88.84503298,0.00022739,2]
[313028672,1706644268165,-61.15496702,0.00022739,2]
[313028673,1706644268174,-150.0,0.00022744,2]
[313028674,1706644268183,-150.0,0.00022753,2]
[313028675,1706644268192,-150.0,0.00022754,2]
[313028676,1706644268201,-150.0,0.00022759,2]
[313028677,1706644268210,-150.0,0.00022762,2]
[313028678,1706644268219,-150.0,0.00022763,2]
[313028679,1706644268229,-68.55970818,0.00022767,2]
[313028681,1706644277445,500.0,0.0002189,2]
[313028683,1706644280914,157.32,0.00022054,2]
[313028684,1706644281141,157.32,0.00022218,2]
[313028685,1706644281359,157.32,0.00022382,2]
[313028688,1706644317621,250.0,0.00021918,2]
[313028690,1706644324256,243.62,0.00021889,2]
[313028692,1706644340400,305.98,0.0001997,2]
[313028693,1706644340639,305.98,0.00022234,2]
[313028694,1706644392472,156.35734063,0.00022442,2]
[313028695,1706644397416,156.35734059,0.00022473,2]
[313028701,1706644468338,23900.0,0.00021808,2]
[313028702,1706644471751,1000.0,0.00021808,2]
[313028703,1706644510329,176.4,0.0002175,2]
[313028704,1706644513455,163.79,0.0002175,2]
[313028705,1706644537503,200.0,0.0002175,2]
[313028706,1706644550187,250.0,0.0002175,2]
[313028708,1706644613905,479.19,0.0002175,2]
[313028709,1706644620602,150.0,0.00021741,2]
[313028711,1706644635552,200.0,0.0002175,2]
[313028712,1706644688885,2000.0,0.00021741,2]
[313028713,1706644713475,157.32,0.00021913,2]
[313028714,1706644713688,157.32,0.00022198,2]
[313028715,1706644713889,157.32,0.00022484,2]
[313028716,1706644801247,243.62,0.00021803,2]
[313028717,1706644812161,1280.11501126,0.00022484,5]
[313028718,1706644819501,230.26985947,0.00022372,2]
[313028719,1706644824391,23539.1809,0.000225,2]
[313028720,1706644936023,275.38,0.00020169,2]
[313028721,1706644936509,275.38,0.00022433,2]
[313028722,1706645005769,200.0,0.00022105,2]
[313028735,1706645056582,2748.6,0.00022025,2]
[313028736,1706645097937,60815.3659,0.000225,2]
[313028737,1706645103159,8829.09382925,0.00021994,2]
[313028738,1706645103658,2314.86655457,0.00022105,2]
[313028739,1706645111447,-156.35734059,0.00022503,2]
[313028740,1706645111469,-156.35734059,0.00022534,2]
[313028741,1706645111490,-1687.28531882,0.00022541,2]
[313028742,1706645112436,-2000.0,0.00022541,2]
[313028743,1706645113505,-2000.0,0.00022541,2]
[313028744,1706645114788,-880.78636646,0.00022541,2]
[313028745,1706645149336,482.36,0.000223,2]
[313028746,1706645157306,636.85363354,0.00022388,2]
[313028747,1706645157326,344.74364783,0.00022388,2]
[313028748,1706645158990,-150.0,0.00022541,2]
[313028749,1706645159016,-450.0,0.00022542,2]
[313028750,1706645235163,376.6286,0.000225,2]
[313028751,1706645240786,205.84,0.00022454,2]
[313028752,1706645245627,184.32060064,0.00022463,2]
[313028753,1706645268098,150.0,0.00022,2]
[313028754,1706645268334,738.46715153,0.00022189,2]
[313028755,1706645268356,1261.53284847,0.00022189,2]
[313028756,1706645308444,221.37,0.00022298,2]
[313028757,1706645336263,150.0,0.00022,2]
[313028758,1706645404409,150.0,0.00022,2]
[313028759,1706645410072,217.09715153,0.00021143,2]
[313028760,1706645410093,70.53284847,0.00021143,2]
[313028779,1706645433646,-412.74688738,0.00022542,2]
[313028780,1706645433658,-8794.55019455,0.00022542,2]
[313028781,1706645433669,-150.0,0.00022548,2]
[313028782,1706645433678,-2229.5496,0.00022563,2]
[313028783,1706645433688,-7154.54009023,0.0002259,2]
[313028784,1706645433697,-157.32,0.00022594,2]
[313028785,1706645433706,-971.56093657,0.00022598,2]
[313028786,1706645433718,-1726.19466018,0.00022598,2]
[313028787,1706645433729,-468.5188612,0.00022598,2]
[313028788,1706645433741,-1393.00554205,0.00022598,2]
[313028789,1706645433750,-970.29951784,0.00022598,2]
[313028790,1706645433760,-3749.91611263,0.00022598,2]
[313028791,1706645433769,-404.36626704,0.00022598,2]
[313028792,1706645433778,-411.78459503,0.00022598,2]
[313028793,1706645433787,-1000.0,0.00022598,2]
[313028794,1706645433796,-262.54517757,0.00022598,2]
[313028795,1706645433805,-175.48278785,0.00022598,2]
[313028810,1706645434260,-60.76990043,0.00022598,2]
[313028811,1706645434270,-519.32961957,0.00022599,2]
[313028812,1706645434282,-309.2745485,0.00022599,2]
[313028815,1706645437954,156.5033049,0.00022448,2]
[313028824,1706645438203,-171.38583193,0.00022599,2]
[313028825,1706645438213,-506.41944881,0.00022599,2]
[313028826,1706645438226,-25.32055119,0.00022599,2]
[313028827,1706645438236,-1673.80944881,0.000226,2]
[313028828,1706645438247,-808.75030777,0.000226,2]
[313028829,1706645438259,-741.27723955,0.000226,2]
[313028830,1706645438270,-420.8888349,0.000226,2]
[313028831,1706645438282,-7019.90363144,0.000226,2]
[313028832,1706645438294,-1335.55499613,0.000226,2]
[313028833,1706645438305,-1678.8,0.000226,2]
[313028834,1706645438327,-12764.66608279,0.000226,2]
[313028835,1706645438339,-98801.97104044,0.000226,2]
[313028836,1706645438348,-3291.82,0.000226,2]
[313028837,1706645438357,-343.67,0.00022656,2]
[313028838,1706645438368,-3151.21,0.000227,2]
[313028839,1706645438378,-200.0,0.000227,8]
[313028840,1706645438388,-81.44029182,0.00022767,2]
[313028841,1706645438399,-500.0,0.000228,8]
[313028842,1706645438410,-296.6922,0.000229,2]
[313028843,1706645438419,-153.48051278,0.000229,2]
[313028844,1706645438428,-161.81644499,0.000229,2]
[313028845,1706645438438,-507.50498318,0.000229,2]
[313028846,1706645438447,-700.0,0.000229,8]
[313028847,1706645438456,-173.36,0.00022961,2]
[313028848,1706645438465,-2623.23288806,0.00022998,2]
[313028849,1706645438475,-79512.1190375,0.00023,2]
[313028850,1706645438486,-120469.4595733,0.00023,2]
[313028851,1706645438498,-28837.25202624,0.00023,2]
[313028852,1706645438509,-99275.8565714,0.00023,2]
[313028853,1706645438536,-900.54101673,0.00023,2]
[313028854,1706645438547,-4525.29631233,0.00023,2]
[313028855,1706645438576,-52020.0,0.00023,2]
[313028856,1706645438588,-5237.33729754,0.00023,2]
[313028857,1706645438599,-1764.92992517,0.00023,2]
[313028860,1706645438617,-395.68194978,0.00023,2]
[313028862,1706645438630,-5568.29692822,0.00023,2]
[313028865,1706645438641,-298.62800448,0.00023,2]
[313028867,1706645438652,-1512.623474,0.00023,2]
[313028869,1706645438663,-13925.37196334,0.00023,2]
[313028871,1706645438675,-360.0,0.00023,2]
[313028874,1706645438687,-1264.65426,0.00023,2]
[313028876,1706645438698,-5248.9,0.00023,2]
[313028877,1706645438710,-403.70016999,0.00023,2]
[313028880,1706645440969,-4182.00000001,0.00023,2]
[313028881,1706645440995,-532.30507063,0.00023,2]
[313028882,1706645441033,-3960.30492052,0.00023,2]
[313028883,1706645441049,-2176.219,0.00023,2]
[313028884,1706645441061,-22827.9622108,0.00023,2]
[313028885,1706645441072,-567.103008,0.00023,2]
[313028890,1706645443031,156.5033049,0.00022486,2]
[313028919,1706645443306,-8609.12154094,0.00023,2]
[313028921,1706645443317,-3903.43025025,0.00023,2]
[313028938,1706645443470,-370788.45157415,0.00023,2]
[313028964,1706645446677,-371.07384069,0.000226,2]
[313028971,1706645447916,156.5033049,0.00022523,2]
[313028972,1706645468512,1459.95723683,0.00022308,2]
[313028973,1706645468534,751.51349031,0.00022308,2]
[313028974,1706645472483,150.0,0.00022,2]
[313028975,1706645504032,182.7,0.00022478,2]
[313028976,1706645544386,200.0,0.00022001,2]
[313028977,1706645556566,715.78650969,0.00022001,2]
[313028978,1706645556588,124.21349031,0.00022001,2]
[313028979,1706645574364,1875.78650969,0.00022061,2]
[313028980,1706645574385,2000.0,0.00022061,2]
[313028981,1706645574416,1676.57596786,0.00022061,2]
[313028982,1706645574439,11837.69752245,0.00022061,2]
[313028983,1706645581211,433.8,0.0002194,2]
[313028984,1706645600818,200.38,0.00021828,2]
[313028985,1706645601934,177190.8551,0.00022497,2]
[313028986,1706645638354,662.09522237,0.00022497,2]
[313028987,1706645649720,467.25,0.00021828,2]
[313028988,1706645680509,200.0,0.00021858,2]
[313028989,1706645706073,170.4708,0.00022497,2]
[313028990,1706645714117,177.41,0.00021836,2]
[313028991,1706645729447,164.28,0.00021836,2]
[313028992,1706645757961,221.79141694,0.00022498,2]
[313028993,1706645783776,158.59,0.00021989,2]
[313028994,1706645906613,297.14,0.00019918,2]
[313028995,1706645906809,297.14,0.00022182,2]
[313028996,1706645910325,250.0,0.00021836,2]
[313028997,1706645920666,182.7,0.00021836,2]
[313028998,1706645935212,250.0,0.00021918,2]
[313028999,1706646016576,328.0,0.0002181,2]
[313029000,1706646128825,177.41,0.0002181,2]
[313029001,1706646140790,361.5,0.00021835,2]
[313029002,1706646184626,1318.15886341,0.00022354,2]
[313029003,1706646188389,194.06748977,0.00022497,2]
[313029004,1706646260776,173.36,0.00021801,2]
[313029005,1706646286520,158.59,0.00021965,2]
[313029006,1706646306730,1318.1588634,0.00022247,2]
[313029007,1706646343723,267.42,0.00020247,2]
[313029008,1706646373755,169.80905361,0.00022497,2]
[313029009,1706646436529,737.6,0.00022244,2]
[313029010,1706646458761,156.45100073,0.00022407,2]
[313029011,1706646500570,2119.9,0.00022007,2]
[313029017,1706646548053,1318.15886341,0.00022479,2]
[313029018,1706646550973,768.55606507,0.00022501,2]
[313029019,1706646557916,2312.60059357,0.00022501,2]
[313029028,1706646631390,-547.40747628,0.00022503,2]
[313029029,1706646631402,-395.43754091,0.00022503,2]
[313029030,1706646631411,-153.45614508,0.00022504,2]
[313029031,1706646631422,-190.644004,0.00022504,2]
[313029032,1706646631431,-642.255996,0.00022505,2]
[313029033,1706646631442,-301.48,0.00022505,2]
[313029034,1706646631454,-364.81603785,0.00022505,2]
[313029035,1706646631463,-267.42,0.00022511,2]
[313029036,1706646631472,-130.47396215,0.00022513,2]
[313029037,1706646631484,-119.52603785,0.00022513,2]
[313029038,1706646631493,-150.0,0.00022552,2]
[313029039,1706646631502,-170.47396215,0.00022553,2]
[313029040,1706646631514,-427.18431737,0.00022553,2]
[313029041,1706646631525,-225.81568263,0.00022553,2]
[313029042,1706646631535,-677.100004,0.00022553,2]
[313029043,1706646631547,-1380.72471376,0.00022553,2]
[313029044,1706646631556,-6535.6941963,0.00022555,2]
[313029046,1706646631697,-26910.25948104,0.00022555,2]
[313029048,1706646631707,-156.21033575,0.00022556,2]
[313029050,1706646631716,-197.20182527,0.00022556,2]
[313029052,1706646631725,-156.62,0.00022556,2]
[313029054,1706646631734,-160.32047041,0.00022556,2]
[313029056,1706646631743,-3003.53542554,0.00022559,2]
[313029058,1706646631752,-325.12,0.00022559,2]
[313029061,1706646631761,-1279.97143251,0.0002256,2]
[313029063,1706646631772,-624.78,0.0002256,2]
[313029065,1706646631781,-499.99,0.00022597,2]
[313029067,1706646631790,-305.77445266,0.00022598,2]
[313029069,1706646631799,-1071.96370442,0.00022598,2]
[313029071,1706646631808,-247.85885747,0.00022598,2]
[313029073,1706646631817,-250.61147486,0.00022598,2]
[313029075,1706646631826,-506.52431985,0.00022598,2]
[313029077,1706646631835,-218.22518431,0.00022598,2]
[313029079,1706646631844,-936.47320211,0.00022599,2]
[313029081,1706646631853,-359.56615931,0.000226,2]
[313029083,1706646631863,-169.80905354,0.000227,2]
[313029085,1706646631873,-3079.38040866,0.00022769,2]
[313029118,1706646632205,-21873.9852,0.00022769,2]
[313029120,1706646632217,-420.55230255,0.00022769,2]
[313029124,1706646632246,-1017.36783253,0.00022769,2]
[313029126,1706646632259,-8429.08964138,0.00022769,2]
[313029128,1706646632273,-576.57357286,0.00022769,2]
[313029129,1706646632286,-746.41878368,0.00022769,2]
[313029130,1706646632301,-275.57494601,0.00022769,2]
[313029131,1706646632320,-604.7260143,0.00022769,2]
[313029132,1706646632331,-1358.5,0.00022769,2]
[313029133,1706646632343,-448.59695826,0.00022769,2]
[313029134,1706646632355,-3600.1079601,0.00022769,2]
[313029136,1706646632376,-4759.8,0.00022769,2]
[313029158,1706646637376,-16948.62560713,0.00022769,2]
[313029164,1706646637444,-208732.37008506,0.00022769,2]
[313029165,1706646637454,-500.0,0.000228,8]
[313029167,1706646637464,-156.45100065,0.00022848,2]
[313029169,1706646637473,-56.25993755,0.000229,2]
[313029172,1706646637486,-443.74006245,0.000229,2]
[313029174,1706646637495,-152.61840626,0.000229,2]
[313029176,1706646637505,-169.31838675,0.000229,2]
[313029178,1706646637515,-188.87567232,0.000229,2]
[313029180,1706646637527,-847.24165019,0.000229,2]
[313029182,1706646637537,-1100.0,0.000229,8]
[313029183,1706646637546,-2496.28,0.00022959,14]
[313029186,1706646637555,-176.57512782,0.00022997,2]
[313029188,1706646637565,-544.2770359,0.00022998,2]
[313029190,1706646637574,-1317.04712678,0.00022998,2]
[313029192,1706646637583,-155.62176792,0.00022998,2]
[313029194,1706646637593,-2560.36887213,0.00022998,2]
[313029196,1706646637603,-183.91154665,0.00022998,2]
[313029198,1706646637612,-219.09250265,0.00022998,2]
[313029199,1706646637622,-155.3309799,0.00022998,2]
[313029200,1706646637631,-155.0,0.00022998,2]
[313029201,1706646637641,-191.64869268,0.00022998,2]
[313029202,1706646637650,-175.06537491,0.00022998,2]
[313029203,1706646637659,-162.54265488,0.00022998,2]
[313029204,1706646637669,-224.16083161,0.00022998,2]
[313029205,1706646637679,-1812.15097522,0.00022998,2]
[313029206,1706646637688,-155.50156782,0.00022998,2]
[313029207,1706646637697,-522.97068952,0.00022998,2]
[313029208,1706646637706,-697.25548386,0.00022998,2]
[313029209,1706646637715,-343.17836134,0.00022998,2]
[313029210,1706646637725,-16801.9913254,0.00022998,2]
[313029211,1706646637734,-156.36025162,0.00022998,2]
[313029213,1706646637743,-155.27446598,0.00022998,2]
[313029215,1706646637753,-199.70577373,0.00022998,2]
[313029217,1706646637762,-2514.34633528,0.00022998,2]
[313029218,1706646637771,-209.26071767,0.00022998,2]
[313029219,1706646637783,-231.93292492,0.00022998,2]
[313029220,1706646637792,-3029.53701716,0.00022998,2]
[313029221,1706646637802,-1260.34340966,0.00022998,4]
[313029222,1706646637811,-1160.16678694,0.00022998,2]
[313029223,1706646637821,-264.59547339,0.00022998,2]
[313029224,1706646637830,-281.30437133,0.00022998,2]
[313029225,1706646637839,-162.79288573,0.00022998,2]
[313029226,1706646637849,-155.0,0.00022998,2]
[313029227,1706646637858,-155.51550435,0.00022998,2]
[313029228,1706646637867,-319.23605445,0.00022998,2]
[313029229,1706646637876,-608.07641091,0.00022998,2]
[313029230,1706646637886,-288.06903944,0.00022998,2]
[313029231,1706646637895,-1191.54006023,0.00022998,2]
[313029232,1706646637905,-458.08995678,0.00022999,2]
[313029233,1706646637914,-242.5572894,0.00022999,2]
[313029234,1706646637923,-3148.06260981,0.00022999,2]
[313029235,1706646637933,-245.21688013,0.00022999,2]
[313029236,1706646637943,-984.24808758,0.00022999,2]
[313029237,1706646637952,-155.40023858,0.00022999,2]
[313029238,1706646637961,-308.40575502,0.00022999,2]
[313029239,1706646637971,-302.15259034,0.00022999,2]
[313029240,1706646637980,-155.37563385,0.00022999,2]
[313029241,1706646637990,-191.11582529,0.00022999,2]
[313029242,1706646637999,-155.60198863,0.00022999,2]
[313029243,1706646638009,-314.71198551,0.00022999,10]
[313029244,1706646638018,-17057.23346298,0.00023,2]
[313029245,1706646638031,-73001.45531397,0.00023,2]
[313029246,1706646638043,-153414.68836761,0.00023,2]
[313029247,1706646638063,-426.03212721,0.00023,2]
[313029248,1706646638075,-10918.0,0.00023,2]
[313029249,1706646638112,-2156.23300983,0.00023,2]
[313029250,1706646638124,-107432.07644451,0.00023,2]
[313029251,1706646638150,-3368.08959021,0.00023,2]
[313029252,1706646638161,-1108.77575039,0.00023,2]
[313029253,1706646638173,-308.15559604,0.00023,2]
[313029254,1706646638185,-2776.99734937,0.00023,2]
[313029258,1706646639937,-2206.78429854,0.00023,2]
[313029259,1706646640049,-43579.15952228,0.00023,2]
[313029260,1706646640061,-553.54469613,0.00023,2]
[313029261,1706646640779,-652.57404056,0.000229,2]
[313029262,1706646640788,-73707.10671105,0.00023,2]
[313029263,1706646640800,-4003.12902235,0.00023,2]
[313029264,1706646640821,-1362.86,0.00023,2]
[313029265,1706646640833,-508.90128622,0.00023,2]
[313029266,1706646640844,-4177.49999999,0.00023,2]
[313029268,1706646640883,-3313.75943291,0.00023,2]
[313029270,1706646640895,-1596.30909,0.00023,2]
[313029286,1706646642613,-5127.3197,0.00023,2]
[313029287,1706646642656,-2993.62349229,0.00023,2]
[313029288,1706646642714,-483481.63974726,0.00023,2]
[313029289,1706646642723,-2599.88218869,0.00023,2]
[313029290,1706646642732,-98284.63513579,0.00023,2]
[313029291,1706646642741,-150.0,0.00023,2]
[313029292,1706646642751,-1318.15886341,0.00023121,2]
[313029293,1706646642760,-156.45100065,0.00023289,2]
[313029294,1706646642769,-156.45100065,0.00023729,2]
[313029296,1706646642779,-156.45100065,0.0002417,2]
[313029297,1706646642789,-167.0,0.00024297,2]
[313029298,1706646642798,-3605.04,0.00024384,2]
[313029299,1706646642808,-2345.71,0.00024384,2]
[313029300,1706646642818,-154.03,0.00024464,2]
[313029301,1706646642827,-328.0,0.00024537,2]
[313029302,1706646642836,-156.45100065,0.00024611,2]
[313029303,1706646642846,-6472.82,0.00024658,2]
[313029304,1706646642855,-250.0,0.00024658,2]
[313029305,1706646642864,-267.42,0.00024775,2]
[313029306,1706646642873,-935.98268242,0.00025,2]
[313029307,1706646642883,-323.68150614,0.00025,2]
[313029308,1706646642892,-535.47499119,0.00025,2]
[313029309,1706646642901,-510.0856496,0.00025,2]
[313029310,1706646642911,-1904.53326151,0.00025,2]
[313029311,1706646642920,-202.54115654,0.00025,2]
[313029312,1706646642929,-304.2742515,0.00025,2]
[313029313,1706646642939,-1587.92031382,0.00025,2]
[313029314,1706646642948,-167.72726834,0.00025,2]
[313029315,1706646642957,-200.0,0.00025,2]
[313029316,1706646642966,-2813.10252128,0.00025,2]
[313029317,1706646642975,-1250.0,0.00025,3]
[313029318,1706646642985,-737.6,0.00025025,2]
[313029319,1706646642994,-156.45100065,0.00025052,2]
[313029320,1706646643003,-1801.88932676,0.000251,2]
[313029321,1706646643012,-154.03,0.00025329,2]
[313029322,1706646643022,-156.45100065,0.00025492,2]
[313029323,1706646643032,-500.0,0.00025599,2]
[313029324,1706646643041,-500.0,0.00025599,2]
[313029325,1706646643050,-500.0,0.00025599,2]
[313029326,1706646643059,-500.0,0.00025599,2]
[313029327,1706646643068,-398.1382377,0.00025599,2]
[313029328,1706646643078,-2896.0,0.000256,2]
[313029329,1706646643087,-16316.0,0.000256,2]
[313029330,1706646643096,-156.45100065,0.00025933,2]
[313029331,1706646643106,-4183.31888273,0.00026,2]
[313029332,1706646643115,-150.0,0.00026079,2]
[313029333,1706646643124,-173.36,0.00026161,2]
[313029334,1706646643132,-154.03,0.00026194,2]
[313029335,1706646643141,-156.45100065,0.00026374,2]
[313029336,1706646643150,-301.25,0.00026681,2]
[313029337,1706646643159,-156.45100065,0.00026815,2]
[313029338,1706646643167,-267.42,0.00027039,2]
[313029339,1706646643176,-154.03,0.0002706,2]
[313029340,1706646643185,-156.45100065,0.00027255,2]
[313029341,1706646643194,-328.0,0.00027263,2]
[313029342,1706646643203,-169.80905354,0.00027317,3]
[313029343,1706646643212,-155.0,0.00027397,2]
[313029344,1706646643221,-156.11,0.00027397,2]
[313029345,1706646643230,-162.02,0.00027397,2]
[313029346,1706646643239,-892.25,0.00027397,2]
[313029347,1706646643249,-155.0,0.000275,2]
[313029348,1706646643260,-892.25,0.00027556,2]
[313029349,1706646643271,-156.45100065,0.00027696,2]
[313029350,1706646643281,-892.25,0.00027714,2]
[313029351,1706646643291,-156.11,0.00027771,2]
[313029352,1706646643301,-737.6,0.00027805,2]
[313029353,1706646643311,-892.25,0.00027872,2]
[313029354,1706646643320,-154.03,0.00027925,2]
[313029355,1706646643329,-892.25,0.0002803,2]
[313029356,1706646643339,-156.45100065,0.00028137,2]
[313029357,1706646643349,-156.11,0.00028144,2]
[313029358,1706646643359,-738.38,0.00028189,2]
[313029359,1706646643368,-892.25,0.00028189,2]
[313029360,1706646643378,-301.25,0.00028325,2]
[313029361,1706646643387,-3647.75980614,0.00028347,6]
[313029362,1706646643396,-892.25,0.00028347,2]
[313029363,1706646643405,-892.25,0.00028505,2]
[313029364,1706646643414,-156.11,0.00028518,2]
[313029365,1706646643423,-156.45100065,0.00028578,2]
[313029366,1706646643432,-892.25,0.00028664,2]
[313029367,1706646643442,-155.0,0.00028767,2]
[313029368,1706646643451,-154.03,0.0002879,2]
[313029369,1706646643460,-892.25,0.00028822,2]
[313029370,1706646643469,-156.11,0.00028892,2]
[313029371,1706646643478,-315.0654484,0.00029,2]
[313029372,1706646643488,-327.17640636,0.00029,2]
[313029373,1706646643497,-164.04600604,0.00029,20]
[313029374,1706646643506,-156.45100065,0.00029018,2]
[313029375,1706646643517,-150.0,0.000291,2]
[313029376,1706646643526,-156.11,0.00029265,2]
[313029377,1706646643536,-267.42,0.00029303,2]
[313029378,1706646643545,-162.02,0.00029452,2]
[313029379,1706646643554,-156.45100065,0.00029459,2]
[313029380,1706646643564,-156.11,0.00029639,2]
[313029381,1706646643573,-154.03,0.00029655,2]
[313029382,1706646643582,-175.93774684,0.000298,2]
[313029383,1706646643591,-1600.0,0.000299,10]
[313029384,1706646643600,-5000.0,0.000299,2]
[313029385,1706646643610,-156.45100065,0.000299,2]
[313029386,1706646643619,-166.95423549,0.000299,2]
[313029387,1706646643628,-183.18964413,0.000299,2]
[313029388,1706646643637,-188.79808636,0.000299,2]
[313029389,1706646643647,-574.64964554,0.000299,2]
[313029390,1706646643656,-4662.42276481,0.0002996,2]
[313029391,1706646643666,-301.25,0.00029969,2]
[313029392,1706646643674,-328.0,0.00029989,2]
[313029393,1706646643683,-173.21757739,0.0003,4]
[313029394,1706646643693,-500.0,0.0003,2]
[313029395,1706646643702,-1809.60794459,0.0003,4]
[313029396,1706646643711,-155.0,0.0003,2]
[313029397,1706646643721,-400.21871354,0.0003,4]
[313029398,1706646643730,-305.77628518,0.0003,2]
[313029399,1706646643739,-908.21727599,0.0003,4]
[313029400,1706646643749,-1985.50282105,0.0003,2]
[313029401,1706646643759,-160281.08376814,0.0003,2]
[313029418,1706646645661,-2382.81453304,0.0003,2]
[313029458,1706646706820,155.0,0.0002,2]
[313029459,1706646778717,3195.29459253,0.00021761,2]
[313029461,1706646911721,158.54558091,0.00022469,2]
[313029462,1706647078056,765.92152862,0.00022469,4]
[313029463,1706647125436,803.0257,0.00022469,2]
[313029464,1706647197905,1239.1471,0.00022469,2]
[313029465,1706647347594,740.69095266,0.000225,2]
[313029466,1706647727069,191.97238914,0.00022469,2]
[313029487,1706647831621,-265.0,0.00022566,2]
[313029488,1706647831631,-299.73317328,0.00022567,2]
[313029489,1706647831642,-405.72658462,0.00022567,2]
[313029490,1706647831650,-298.17399244,0.00022567,2]
[313029491,1706647831659,-150.0,0.00022568,2]
[313029492,1706647831669,-663.17595373,0.00022569,2]